bitfinex-derivatives/quotes_SOLF0:USTF0_20250817
["timestamp","ask_amount","ask_price","bid_price","bid_amount"]
[1755393306759,4.0559829,187.97,187.9,1.99624071]
[1755393306760,3.12,187.95,187.87,7.31534071]
[1755393307065,3.12,187.93,187.84,2.98]
[1755393307364,1.99624071,187.96,187.81,487.98]
[1755393307365,3.12,187.97,187.91,2.98]
[1755393307567,4.05762727,187.96,187.91,2.98]
[1755393307765,3.12,187.97,187.91,2.98]
[1755393308069,3.12,187.94,187.92,2.98]
[1755393308256,7.17901817,187.93,187.92,2.98]
[1755393308861,3.12,187.92,187.86,1.99624071]
[1755393309061,4.05901817,187.91,187.89,2.98]
[1755393309266,7.17901817,187.9,187.84,2.98]
[1755393309466,8.81279073,187.89,187.8,1.99624071]
[1755393309662,4.05901817,187.88,187.85,2.98]
[1755393309862,3.12,187.91,187.85,2.98]
[1755393310162,7.18110108,187.9,187.85,2.98]
[1755393310464,4.06110108,187.89,187.85,2.98]
[1755393311668,7.18110108,187.89,187.85,2.98]
[1755393311868,7.18110108,187.88,187.85,2.98]
[1755393312067,3.12,187.88,187.85,2.98]
[1755393312265,4.06960147,187.87,187.85,2.98]
[1755393312466,4.06912223,187.86,187.85,2.98]
[1755393312666,7.18912223,187.86,187.85,2.98]
[1755393312863,4.06912223,187.86,187.85,2.98]
[1755393313264,8.83938449,187.86,187.85,2.98]
[1755393313973,4.06912223,187.86,187.85,2.98]
[1755393317369,11.58977614,187.86,187.8,1.99624071]
[1755393317570,2.94,187.84,187.81,3.06]
[1755393317873,4.06912223,187.83,187.81,3.06]
[1755393318072,4.06912223,187.82,187.81,3.06]
[1755393319875,4.06912223,187.82,187.8,1.99624071]
[1755393320077,4.10673495,187.81,187.77,1.99624071]
[1755393320377,7.04673495,187.8,187.78,3.06]
[1755393320571,4.10673495,187.79,187.78,3.06]
[1755393320777,2.94,187.77,187.76,3.06]
[1755393320971,7.04673495,187.77,187.76,3.06]
[1755393322173,4.10673495,187.77,187.76,3.06]
[1755393322379,7.04673495,187.77,187.76,3.06]
[1755393322580,4.10673495,187.77,187.76,3.06]
[1755393322979,2.94,187.76,187.7,3.06]
[1755393323171,2.94,187.76,187.61,357.6]
[1755393323172,4.10673495,187.75,187.64,130.52]
[1755393323480,2.94,187.73,187.67,3.06]
[1755393323679,7.04673495,187.72,187.67,3.06]
[1755393323980,4.10673495,187.71,187.67,3.06]
[1755393324176,2.94,187.72,187.68,5.3247]
[1755393324373,4.09596423,187.71,187.69,3.06]
[1755393324578,2.94,187.72,187.69,3.06]
[1755393324773,4.0959423,187.71,187.69,3.06]
[1755393324975,2.94,187.75,187.67,3.06]
[1755393325281,2.94,187.73,187.67,3.06]
[1755393325475,2.94,187.71,187.67,3.06]
[1755393326081,2.94,187.71,187.68,3.06]
[1755393326273,4.37907204,187.75,187.67,3.06]
[1755393326274,2.94,187.74,187.67,3.06]
[1755393326576,2.94,187.72,187.67,3.06]
[1755393326776,2.94,187.7,187.68,3.06]
[1755393326975,4.09103066,187.71,187.68,3.06]
[1755393326976,2.94,187.69,187.68,3.06]
[1755393327171,2.94,187.68,187.67,3.06]
[1755393327479,2.94,187.67,187.65,3.06]
[1755393327681,2.94,187.67,187.66,3.06]
[1755393327875,2.94,187.72,187.66,5.05624071]
[1755393328071,4.08834261,187.71,187.67,3.06]
[1755393328271,2.94,187.76,187.7,3.06]
[1755393328478,2.94,187.74,187.7,3.06]
[1755393328677,4.08790562,187.73,187.7,3.06]
[1755393328979,2.94,187.74,187.7,3.06]
[1755393329171,2.94,187.73,187.7,3.06]
[1755393329574,2.94,187.73,187.7,5.3241]
[1755393329777,2.94,187.73,187.72,3.06]
[1755393330178,2.94,187.78,187.72,3.06]
[1755393330385,2.94,187.76,187.72,3.06]
[1755393330678,7.026367,187.75,187.72,3.06]
[1755393330882,4.37907204,187.79,187.72,3.06]
[1755393331080,2.94,187.77,187.72,3.06]
[1755393331281,4.08619227,187.76,187.72,3.06]
[1755393331579,2.94,187.73,187.72,3.06]
[1755393332279,2.94,187.79,187.72,3.06]
[1755393332479,4.08543914,187.78,187.72,5.05624071]
[1755393332680,4.37907204,187.83,187.72,1.99624071]
[1755393332876,2.94,187.81,187.76,3.06]
[1755393333281,2.94,187.8,187.77,5.3221]
[1755393333478,2.94,187.8,187.79,3.06]
[1755393334081,2.94,187.85,187.79,3.06]
[1755393334282,2.94,187.83,187.8,3.06]
[1755393334483,2.94,187.81,187.8,3.06]
[1755393334683,4.08745673,187.81,187.76,3.06]
[1755393334881,2.94,187.8,187.76,3.06]
[1755393335276,2.94,187.8,187.77,3.06]
[1755393335880,2.94,187.8,187.73,5.3232]
[1755393336088,2.94,187.78,187.71,3.06]
[1755393336479,2.94,187.76,187.71,3.06]
[1755393336676,2.94,187.82,187.71,3.06]
[1755393336885,4.08793133,187.81,187.74,3.06]
[1755393337082,2.94,187.79,187.75,3.06]
[1755393337387,6.37531275,187.84,187.75,3.06]
[1755393337388,2.94,187.78,187.75,3.06]
[1755393337583,2.94,187.77,187.74,5.3228]
[1755393337788,2.94,187.77,187.76,3.06]
[1755393339185,6.37531275,187.84,187.73,3.06]
[1755393339492,2.94,187.81,187.73,3.06]
[1755393339686,2.94,187.79,187.73,3.06]
[1755393339879,2.94,187.77,187.73,3.06]
[1755393340082,2.94,187.77,187.7,5.3239]
[1755393340287,2.94,187.77,187.71,3.06]
[1755393340691,2.94,187.75,187.7,3.06]
[1755393340884,2.94,187.79,187.7,3.06]
[1755393341084,2.94,187.77,187.7,3.06]
[1755393341286,2.94,187.75,187.69,1.99624071]
[1755393341487,2.94,187.75,187.71,3.06]
[1755393341985,2.94,187.75,187.72,3.06]
[1755393342190,2.94,187.74,187.73,3.06]
[1755393342492,2.94,187.74,187.69,1.99624071]
[1755393342493,2.94,187.73,187.72,3.06]
[1755393344794,2.94,187.78,187.69,3.06]
[1755393344990,2.94,187.76,187.69,3.06]
[1755393345185,4.09469729,187.75,187.69,3.06]
[1755393345392,2.94,187.73,187.69,3.06]
[1755393345791,2.94,187.73,187.7,3.06]
[1755393348897,2.94,187.73,187.67,2.94]
[1755393349397,4.08963738,187.72,187.65,1.99624071]
[1755393349599,4.37907204,187.76,187.65,1.99624071]
[1755393349600,3.05,187.7,187.67,2.94]
[1755393349996,3.05,187.7,187.68,2.94]
[1755393350397,3.05,187.69,187.68,2.94]
[1755393350597,4.37907204,187.75,187.68,2.94]
[1755393350796,3.05,187.7,187.68,2.94]
[1755393351000,3.05,187.7,187.69,2.94]
[1755393352197,3.05,187.7,187.68,2.94]
[1755393352698,4.09354239,187.69,187.66,2.94]
[1755393353004,3.05,187.73,187.66,2.94]
[1755393353202,4.09354235,187.72,187.66,2.94]
[1755393353403,3.05,187.7,187.65,2.94]
[1755393353603,3.05,187.69,187.65,2.94]
[1755393353797,4.37907204,187.74,187.65,2.94]
[1755393354004,3.05,187.68,187.65,2.94]
[1755393355107,3.05,187.68,187.65,8.2655]
[1755393355407,3.05,187.73,187.66,2.94]
[1755393355611,4.09668532,187.72,187.66,2.94]
[1755393355912,3.05,187.7,187.68,2.94]
[1755393356306,4.09768634,187.69,187.68,2.94]
[1755393356508,3.05,187.7,187.68,2.94]
[1755393357709,4.41063305,187.75,187.68,2.94]
[1755393357914,7.14978574,187.74,187.68,2.94]
[1755393358114,7.14978574,187.73,187.68,2.94]
[1755393358308,4.09978574,187.72,187.68,2.94]
[1755393358514,3.05,187.7,187.66,5.3252]
[1755393358711,3.05,187.7,187.67,2.94]
[1755393359013,4.41063305,187.75,187.67,2.94]
[1755393359014,3.05,187.69,187.67,2.94]
[1755393359215,7.46063305,187.74,187.65,2.94]
[1755393359411,3.05,187.72,187.65,2.94]
[1755393359605,3.05,187.7,187.63,5.3261]
[1755393359808,3.05,187.68,187.62,2.94]
[1755393360109,6.40687376,187.73,187.62,2.94]
[1755393360110,4.10190935,187.67,187.62,2.94]
[1755393360317,4.1026093,187.66,187.6,2.94]
[1755393360516,7.15242497,187.65,187.6,2.94]
[1755393360706,4.41063305,187.69,187.6,2.94]
[1755393361010,3.05,187.63,187.6,2.94]
[1755393361406,3.05,187.65,187.6,2.94]
[1755393361609,7.46063305,187.69,187.6,2.94]
[1755393361809,3.05,187.67,187.58,2.94]
[1755393362009,3.05,187.65,187.58,2.94]
[1755393362210,4.10255661,187.64,187.58,2.94]
[1755393362412,3.05,187.62,187.58,2.94]
[1755393363316,6.40687376,187.67,187.58,2.94]
[1755393363513,3.05,187.61,187.58,2.94]
[1755393363912,3.05,187.61,187.58,8.2674]
[1755393364108,3.05,187.65,187.59,2.94]
[1755393364313,7.15483527,187.64,187.59,2.94]
[1755393364614,7.15483527,187.63,187.59,2.94]
[1755393364813,3.05,187.66,187.59,2.94]
[1755393365018,4.10364071,187.65,187.59,2.94]
[1755393365316,7.15364071,187.64,187.59,2.94]
[1755393365516,3.05,187.64,187.59,2.94]
[1755393365712,3.05,187.63,187.59,2.94]
[1755393366317,3.05,187.63,187.61,2.94]
[1755393366515,3.05,187.63,187.62,2.94]
[1755393367019,3.05,187.63,187.6,8.2669]
[1755393367216,3.05,187.62,187.61,2.94]
[1755393367522,3.05,187.68,187.61,2.94]
[1755393367720,4.10213713,187.67,187.61,5.3266]
[1755393367921,4.41063305,187.69,187.61,1.99624071]
[1755393367922,4.10213713,187.66,187.61,1.99624071]
[1755393368121,3.05,187.71,187.68,2.94]
[1755393368322,4.10345271,187.7,187.68,2.94]
[1755393368618,4.10345271,187.7,187.67,1.99624071]
[1755393368619,4.41726528,187.75,187.67,7.32114071]
[1755393368919,4.41726528,187.75,187.69,2.94]
[1755393368920,3.05,187.7,187.69,2.94]
[1755393370718,3.05,187.72,187.69,2.94]
[1755393370915,7.15230931,187.71,187.7,2.94]
[1755393371622,3.05,187.71,187.7,2.94]
[1755393371822,3.05,187.76,187.71,2.94]
[1755393372121,4.10271561,187.75,187.7,1.99624071]
[1755393372423,3.05,187.73,187.72,2.94]
[1755393372626,7.15271561,187.73,187.72,2.94]
[1755393373118,4.41726528,187.78,187.72,2.94]
[1755393373318,4.10378903,187.77,187.72,2.94]
[1755393373524,7.15378903,187.76,187.72,2.94]
[1755393373722,4.10378903,187.75,187.72,2.94]
[1755393373922,7.15378903,187.75,187.72,2.94]
[1755393374125,3.05,187.75,187.72,2.94]
[1755393375025,3.05,187.75,187.71,5.3238]
[1755393375228,3.05,187.79,187.71,2.94]
[1755393375527,3.05,187.77,187.74,2.94]
[1755393375826,3.05,187.76,187.75,2.94]
[1755393376028,3.05,187.82,187.75,2.94]
[1755393376329,3.05,187.8,187.75,2.94]
[1755393376526,3.05,187.78,187.74,2.94]
[1755393376726,4.10402626,187.77,187.72,2.94]
[1755393376923,4.10383384,187.76,187.7,1.99624071]
[1755393377118,3.05,187.74,187.73,2.94]
[1755393377926,7.31726528,187.8,187.71,2.83]
[1755393378123,2.9,187.78,187.71,2.83]
[1755393378323,2.9,187.76,187.71,2.83]
[1755393378524,4.10363193,187.75,187.67,1.99624071]
[1755393378727,2.9,187.79,187.71,2.83]
[1755393378932,2.9,187.77,187.71,2.83]
[1755393379130,2.9,187.75,187.72,2.83]
[1755393380228,2.9,187.75,187.7,1.99624071]
[1755393380430,4.10556124,187.74,187.71,2.83]
[1755393380632,2.9,187.72,187.71,2.83]
[1755393381832,2.9,187.78,187.71,2.83]
[1755393382028,4.10596818,187.77,187.71,2.83]
[1755393382224,2.9,187.75,187.7,1.99624071]
[1755393382429,4.42352141,187.79,187.72,2.83]
[1755393382630,2.9,187.73,187.72,2.83]
[1755393382830,2.9,187.79,187.72,2.83]
[1755393383031,4.10695659,187.78,187.72,2.83]
[1755393383236,2.9,187.76,187.72,2.83]
[1755393383439,2.9,187.74,187.71,2.83]
[1755393384539,2.9,187.79,187.71,2.83]
[1755393384736,7.00852607,187.78,187.71,2.83]
[1755393384932,4.10852607,187.77,187.71,2.83]
[1755393385132,7.00852607,187.77,187.71,2.83]
[1755393385339,7.00852607,187.76,187.71,2.83]
[1755393385541,4.10852607,187.75,187.71,2.83]
[1755393385842,2.9,187.76,187.71,2.83]
[1755393386138,4.09578829,187.75,187.73,1.99624071]
[1755393386334,2.9,187.8,187.74,2.83]
[1755393386536,2.9,187.78,187.74,2.83]
[1755393386937,4.42352141,187.83,187.74,2.83]
[1755393387145,2.9,187.81,187.74,2.83]
[1755393387336,4.09598096,187.8,187.74,2.83]
[1755393387536,4.09598096,187.79,187.74,2.83]
[1755393387736,2.9,187.78,187.74,2.83]
[1755393388333,4.42352141,187.84,187.75,2.83]
[1755393388536,6.99513445,187.83,187.77,2.83]
[1755393388742,2.9,187.81,187.77,2.83]
[1755393388943,2.9,187.83,187.78,2.83]
[1755393389141,6.99506004,187.82,187.78,2.83]
[1755393389341,2.9,187.82,187.78,2.83]
[1755393389643,2.9,187.84,187.8,2.83]
[1755393389835,4.09389551,187.83,187.8,2.83]
[1755393390030,4.42383486,187.87,187.8,2.83]
[1755393390031,4.42383486,187.87,187.8,8.1512]
[1755393390236,130.82,187.89,187.81,2.83]
[1755393390237,2.9,187.85,187.81,2.83]
[1755393390433,4.09389816,187.84,187.81,2.83]
[1755393390635,2.9,187.85,187.81,2.83]
[1755393390841,4.09218273,187.84,187.81,2.83]
[1755393391043,2.9,187.85,187.81,2.83]
[1755393391241,2.9,187.87,187.82,1.99624071]
[1755393391447,2.9,187.87,187.83,2.83]
[1755393391738,2.9,187.93,187.76,2.83]
[1755393391942,1.99624071,187.87,187.76,2.83]
[1755393392247,2.9,187.85,187.76,2.83]
[1755393392446,2.9,187.85,187.77,2.83]
[1755393398545,2.9,187.89,187.81,2.83]
[1755393398747,2.9,187.89,187.77,42.0]
[1755393399047,2.9,187.89,187.79,2.83]
[1755393399450,4.07772941,187.88,187.79,2.83]
[1755393399647,2.9,187.89,187.79,2.83]
[1755393399848,2.9,187.87,187.79,2.83]
[1755393403251,2.9,187.86,187.79,2.83]
[1755393407458,3.1,187.84,187.76,3.06]
[1755393408361,3.1,187.84,187.77,3.06]
[1755393409354,3.1,187.84,187.75,5.05624071]
[1755393409560,3.1,187.82,187.73,3.06]
[1755393409759,3.1,187.84,187.76,3.06]
[1755393412163,4.08424472,187.83,187.76,8.3823]
[1755393412365,3.1,187.82,187.77,3.06]
[1755393412562,3.1,187.81,187.77,3.06]
[1755393412861,3.1,187.81,187.77,8.3821]
[1755393413062,3.1,187.81,187.78,3.06]
[1755393413764,3.1,187.81,187.59,0.92713467]
[1755393413765,3.1,187.79,187.59,0.92713467]
[1755393413965,3.1,187.72,187.6,5.05624071]
[1755393414162,7.18562491,187.71,187.61,3.06]
[1755393414359,4.08562491,187.7,187.61,3.06]
[1755393414666,7.18562491,187.7,187.61,3.06]
[1755393414961,4.08562491,187.69,187.61,3.06]
[1755393415365,4.08562491,187.69,187.61,8.3866]
[1755393415563,4.08562491,187.69,187.62,3.06]
[1755393415760,3.1,187.7,187.62,3.06]
[1755393416164,4.16182962,187.69,187.62,8.3863]
[1755393416462,3.1,187.7,187.63,3.06]
[1755393418460,363.62054089,187.8,187.63,3.06]
[1755393418461,4.15930934,187.69,187.63,3.06]
[1755393418771,5.09624071,187.67,187.61,3.06]
[1755393418960,3.1,187.65,187.61,3.06]
[1755393419160,4.15621954,187.64,187.61,3.06]
[1755393419364,3.1,187.62,187.61,3.06]
[1755393420663,3.1,187.69,187.61,3.06]
[1755393420866,3.40000345,187.73,187.61,3.06]
[1755393420867,3.1,187.67,187.61,3.06]
[1755393421065,3.1,187.65,187.61,3.06]
[1755393421266,3.1,187.65,187.63,3.06]
[1755393421666,3.1,187.65,187.64,3.06]
[1755393422171,3.1,187.65,187.63,3.06]
[1755393422574,366.58081134,187.8,187.51,0.92762895]
[1755393422575,3.1,187.64,187.53,3.06]
[1755393422773,3.1,187.64,187.55,5.3281]
[1755393422972,3.1,187.64,187.56,3.06]
[1755393427480,3.1,187.69,187.56,3.40000345]
[1755393427777,3.1,187.69,187.57,3.06]
[1755393428281,3.1,187.67,187.57,3.06]
[1755393428571,3.1,187.67,187.58,5.3273]
[1755393428771,3.1,187.67,187.59,3.06]
[1755393429375,9.20909666,187.66,187.59,3.06]
[1755393429576,7.23864714,187.65,187.59,3.06]
[1755393429776,3.1,187.65,187.59,3.06]
[1755393431174,3.1,187.65,187.52,8.72920345]
[1755393431380,3.1,187.65,187.57,3.06]
[1755393433177,3.1,187.65,187.53,3.06]
[1755393434380,3.1,187.65,187.54,3.06]
[1755393434769,12.58796375,187.64,187.54,3.06]
[1755393434975,3.1,187.62,187.54,3.06]
[1755393436586,3.1,187.62,187.54,8.3885]
[1755393436786,3.1,187.62,187.55,3.06]
[1755393437384,3.1,187.66,187.52,3.40000345]
[1755393437687,3.1,187.64,187.53,2.91]
[1755393437980,3.1,187.7,187.61,2.91]
[1755393438180,3.1,187.68,187.61,2.91]
[1755393439188,4.12923369,187.67,187.61,2.91]
[1755393439487,3.1,187.68,187.61,2.91]
[1755393439684,4.14974696,187.67,187.61,2.91]
[1755393439888,3.1,187.65,187.61,2.91]
[1755393441588,3.1,187.63,187.57,2.91]
[1755393444395,3.1,187.67,187.57,2.91]
[1755393444582,4.15275362,187.66,187.57,2.91]
[1755393444891,3.1,187.67,187.56,3.40000345]
[1755393445084,7.25278583,187.66,187.61,2.91]
[1755393445286,3.1,187.66,187.61,2.91]
[1755393447193,4.15605229,187.65,187.61,2.91]
[1755393447392,3.1,187.66,187.61,2.91]
[1755393447696,4.15829751,187.65,187.61,2.91]
[1755393447900,3.1,187.66,187.61,2.91]
[1755393448093,7.25829751,187.65,187.61,2.91]
[1755393448294,4.15972783,187.64,187.52,45.40000345]
[1755393448494,7.25972783,187.63,187.53,2.91]
[1755393448800,3.1,187.63,187.56,5.328]
[1755393449097,3.1,187.63,187.57,2.91]
[1755393449599,4.16186296,187.62,187.53,2.91]
[1755393449796,4.16186296,187.61,187.53,2.91]
[1755393450099,3.1,187.63,187.56,2.91]
[1755393450400,4.16407272,187.62,187.56,2.91]
[1755393450599,4.16407272,187.61,187.56,2.91]
[1755393450800,3.1,187.61,187.56,2.91]
[1755393451900,3.1,187.61,187.56,8.238]
[1755393452101,3.1,187.63,187.57,2.91]
[1755393452301,7.26843737,187.62,187.57,2.91]
[1755393452501,4.16843737,187.61,187.57,2.91]
[1755393452795,3.1,187.62,187.57,8.2378]
[1755393452996,4.16843737,187.61,187.58,2.91]
[1755393453198,3.1,187.64,187.58,2.91]
[1755393453401,12.13423086,187.63,187.58,2.91]
[1755393453601,4.17136486,187.62,187.58,2.91]
[1755393453802,3.1,187.62,187.58,2.91]
[1755393454003,4.17155082,187.61,187.58,2.91]
[1755393454306,3.1,187.64,187.58,2.91]
[1755393454499,12.14162529,187.63,187.58,2.91]
[1755393454698,4.1747655,187.62,187.58,2.91]
[1755393454903,4.1747655,187.61,187.58,2.91]
[1755393455107,3.1,187.63,187.58,2.91]
[1755393455304,4.17893186,187.62,187.58,2.91]
[1755393455507,4.17893186,187.61,187.58,2.91]
[1755393455801,3.1,187.63,187.58,2.91]
[1755393456006,4.17917184,187.62,187.58,2.91]
[1755393456303,4.17917184,187.61,187.58,2.91]
[1755393456506,4.17917184,187.6,187.58,2.91]
[1755393456700,3.1,187.63,187.58,2.91]
[1755393456701,4.17917184,187.59,187.58,2.91]
[1755393457200,3.1,187.63,187.58,2.91]
[1755393457401,12.13490463,187.62,187.58,2.91]
[1755393457603,9.03490463,187.61,187.58,2.91]
[1755393457803,4.18928398,187.6,187.58,2.91]
[1755393458002,4.18928398,187.59,187.58,2.91]
[1755393463103,7.28928398,187.59,187.58,2.91]
[1755393463306,3.1,187.58,187.54,2.91]
[1755393463504,7.28928398,187.57,187.55,2.91]
[1755393463702,4.18928398,187.56,187.55,2.91]
[1755393464309,7.28928398,187.56,187.55,2.91]
[1755393464906,7.28928398,187.56,187.53,2.91]
[1755393465107,7.28928398,187.56,187.5,7.33418725]
[1755393465108,4.18928398,187.55,187.54,2.91]
[1755393465307,3.1,187.56,187.55,2.91]
[1755393465507,7.30302227,187.56,187.51,2.91]
[1755393465703,7.30300903,187.55,187.51,2.91]
[1755393466011,3.1,187.55,187.51,2.91]
[1755393466206,3.1,187.57,187.51,2.91]
[1755393466408,7.302672,187.56,187.51,2.91]
[1755393466705,3.1,187.56,187.51,5.3294]
[1755393466914,3.1,187.56,187.52,2.91]
[1755393468110,3.09,187.58,187.52,2.91]
[1755393468308,4.20257584,187.57,187.52,2.91]
[1755393468512,3.09,187.58,187.52,2.91]
[1755393468705,4.20251397,187.57,187.52,2.91]
[1755393468906,3.09,187.58,187.52,2.91]
[1755393469107,4.20252721,187.57,187.52,2.91]
[1755393469307,3.09,187.58,187.53,2.93]
[1755393469509,3.09,187.56,187.53,2.93]
[1755393469911,3.09,187.57,187.53,2.93]
[1755393474217,3.09,187.61,187.53,2.93]
[1755393474417,3.09,187.59,187.53,2.93]
[1755393474616,3.09,187.57,187.53,2.93]
[1755393475417,3.09,187.57,187.54,2.93]
[1755393476118,3.09,187.56,187.54,2.93]
[1755393476306,3.09,187.56,187.55,2.93]
[1755393480019,2.00448725,187.61,187.5,2.00448725]
[1755393480219,3.09,187.59,187.51,2.93]
[1755393480417,7.2874857,187.58,187.5,2.00448725]
[1755393480611,4.1974857,187.57,187.51,2.93]
[1755393480809,3.09,187.58,187.51,2.93]
[1755393481020,3.09,187.56,187.51,2.93]
[1755393481717,3.09,187.55,187.51,2.93]
[1755393482021,3.09,187.57,187.51,2.93]
[1755393482323,3.09,187.61,187.5,2.00448725]
[1755393482520,4.19753379,187.6,187.54,2.93]
[1755393482821,4.19753379,187.59,187.54,2.93]
[1755393483020,4.19753379,187.58,187.55,2.93]
[1755393483222,3.09,187.59,187.55,2.93]
[1755393483519,4.19784923,187.58,187.55,2.93]
[1755393483719,3.09,187.61,187.55,2.93]
[1755393483914,3.09,187.59,187.56,2.93]
[1755393484116,7.2880947,187.58,187.57,2.93]
[1755393484421,4.1980947,187.58,187.57,2.93]
[1755393485925,3.09,187.6,187.57,2.93]
[1755393486122,4.19882241,187.59,187.57,2.93]
[1755393486322,3.09,187.6,187.57,2.93]
[1755393486616,4.19916293,187.59,187.57,2.93]
[1755393486820,3.09,187.6,187.57,2.93]
[1755393487014,4.19916293,187.59,187.54,2.93]
[1755393487322,4.19916293,187.58,187.54,2.93]
[1755393487625,3.09,187.62,187.54,2.93]
[1755393487819,4.19932505,187.61,187.54,2.93]
[1755393488020,4.19932505,187.6,187.54,2.93]
[1755393488323,3.09,187.62,187.54,2.93]
[1755393488521,4.19931471,187.61,187.54,2.93]
[1755393488821,4.19931471,187.6,187.54,2.93]
[1755393489025,3.09,187.61,187.54,2.93]
[1755393489218,7.28912758,187.6,187.54,8.2586]
[1755393489521,3.09,187.63,187.55,2.93]
[1755393489722,3.09,187.61,187.55,2.93]
[1755393489916,4.1991838,187.6,187.55,2.93]
[1755393490115,3.09,187.6,187.55,2.93]
[1755393490312,4.43895905,187.64,187.56,2.93]
[1755393490313,3.09,187.62,187.56,2.93]
[1755393490517,4.43895905,187.64,187.56,2.93]
[1755393490518,4.19988762,187.61,187.56,2.93]
[1755393490721,3.09,187.64,187.57,2.93]
[1755393490922,4.20043617,187.63,187.57,2.93]
[1755393491121,4.20043617,187.62,187.57,2.93]
[1755393491421,3.09,187.64,187.58,5.3274]
[1755393491617,7.29071022,187.63,187.59,2.93]
[1755393491818,4.20071022,187.62,187.59,2.93]
[1755393492018,3.09,187.63,187.59,2.93]
[1755393492220,7.29071883,187.62,187.6,2.93]
[1755393492527,4.20071883,187.61,187.6,2.93]
[1755393492822,3.09,187.63,187.6,2.93]
[1755393493026,4.20114189,187.62,187.6,2.93]
[1755393493224,4.20162411,187.61,187.6,2.93]
[1755393493523,3.09,187.63,187.6,2.93]
[1755393493719,4.20141852,187.62,187.6,2.93]
[1755393494027,3.09,187.65,187.56,2.93]
[1755393494224,3.09,187.63,187.56,2.93]
[1755393494413,7.29141852,187.62,187.56,2.93]
[1755393494619,3.09,187.62,187.56,2.93]
[1755393495029,3.09,187.62,187.57,2.93]
[1755393496032,3.09,187.65,187.57,2.93]
[1755393496222,4.20119867,187.64,187.57,2.93]
[1755393496528,7.29119867,187.63,187.57,2.93]
[1755393496729,7.29119867,187.62,187.57,2.93]
[1755393496922,3.09,187.62,187.57,2.93]
[1755393497526,4.43895905,187.66,187.57,2.93]
[1755393497527,3.09,187.65,187.58,2.92]
[1755393497731,3.09,187.61,187.58,2.92]
[1755393500131,3.09,187.64,187.58,2.92]
[1755393500329,3.09,187.62,187.58,2.92]
[1755393503831,3.09,187.64,187.58,2.92]
[1755393504030,7.30428227,187.63,187.58,2.92]
[1755393504229,4.21428227,187.62,187.58,2.92]
[1755393504424,3.09,187.63,187.58,2.92]
[1755393504624,4.21414635,187.62,187.58,2.92]
[1755393504825,4.43895905,187.66,187.52,2.00448725]
[1755393504826,4.21395872,187.61,187.52,2.00448725]
[1755393505132,7.92502814,187.66,187.53,2.92]